[Event "Titled Tuesday Blitz July 6 2021"]
[White "Kubatko, Ivan"]
[Black "Zubritskiy, Artyom"]
[WhiteFideId "24111473"]
[BlackFideId "4181247"]
[WhiteElo "2285"]
[BlackElo "2559"]
[Result "0-1"]
[Round "04"]
[TimeControl "180+1"]
[Date "2021.07.06"]
[WhiteClock "0:00:01"]
[BlackClock "0:00:08"]

1. e4 {[%clk 0:03:00]}  e5 {[%clk 0:02:53]} 2. Nf3 {[%clk 0:03:00]}  f5 {[%clk 0:02:54]} 3. Nxe5 {[%clk 0:02:42]}  Qf6 {[%clk 0:02:54]} 4. d4 {[%clk 0:02:41]}  d6 {[%clk 0:02:54]} 5. Nc4 {[%clk 0:02:28]}  fxe4 {[%clk 0:02:54]} 6. d5 {[%clk 0:02:25]}  Qg6 {[%clk 0:02:50]} 7. Nc3 {[%clk 0:02:22]}  Nf6 {[%clk 0:02:49]} 8. h3 {[%clk 0:02:19]}  Be7 {[%clk 0:02:45]} 9. Be3 {[%clk 0:02:07]}  O-O {[%clk 0:02:44]} 10. Qd2 {[%clk 0:02:01]}  a6 {[%clk 0:02:33]} 11. a4 {[%clk 0:01:57]}  b6 {[%clk 0:02:18]} 12. g4 {[%clk 0:01:29]}  Nbd7 {[%clk 0:02:03]} 13. Bg2 {[%clk 0:01:23]}  h6 {[%clk 0:01:48]} 14. Qd4 {[%clk 0:01:15]}  Bb7 {[%clk 0:01:30]} 15. Nxe4 {[%clk 0:01:10]}  Nxd5 {[%clk 0:01:23]} 16. O-O-O {[%clk 0:00:55]}  Rae8 {[%clk 0:00:56]} 17. Bd2 {[%clk 0:00:34]}  Nf4 {[%clk 0:00:44]} 18. Bf3 {[%clk 0:00:14]}  c5 {[%clk 0:00:22]} 19. Qe3 {[%clk 0:00:09]}  d5 {[%clk 0:00:21]} 20. Rhe1 {[%clk 0:00:02]}  dxe4 {[%clk 0:00:20]} 21. Bxe4 {[%clk 0:00:01]}  Bxe4 {[%clk 0:00:19]} 22. Qxe4 {[%clk 0:00:02]}  Qxe4 {[%clk 0:00:19]} 23. Rxe4 {[%clk 0:00:03]}  Bg5 {[%clk 0:00:15]} 24. Rde1 {[%clk 0:00:02]}  Rxe4 {[%clk 0:00:14]} 25. Rxe4 {[%clk 0:00:03]}  Nxh3 {[%clk 0:00:14]} 26. a5 {[%clk 0:00:03]}  b5 {[%clk 0:00:12]} 27. Nd6 {[%clk 0:00:03]}  Rxf2 {[%clk 0:00:09]} 28. Bxg5 {[%clk 0:00:02]}  Nxg5 {[%clk 0:00:09]} 29. Re8+ {[%clk 0:00:03]}  Kh7 {[%clk 0:00:09]} 30. Rd8 {[%clk 0:00:02]}  Ne5 {[%clk 0:00:09]} 31. Ra8 {[%clk 0:00:01]}  Ngf3 {[%clk 0:00:08]} 32. b3 {[%clk 0:00:01]}  c4 {[%clk 0:00:08]} 0-1


[Site "https://www.chess.com"]

[Event "Titled Tuesday Blitz July 6 2021"]
[White "LEGENYA1998"]
[Black "Rostovtsev, Dmitry"]
[BlackFideId "34278320"]
[WhiteElo "2466"]
[BlackElo "2114"]
[Result "0-1"]
[Round "04"]
[TimeControl "180+1"]
[Date "2021.07.06"]
[WhiteClock "0:01:50"]
[BlackClock "0:01:26"]

1. e4 {[%clk 0:03:00]}  c5 {[%clk 0:03:00]} 2. c3 {[%clk 0:03:00]}  Nf6 {[%clk 0:02:59]} 3. e5 {[%clk 0:03:01]}  Nd5 {[%clk 0:03:00]} 4. d4 {[%clk 0:03:02]}  cxd4 {[%clk 0:03:01]} 5. cxd4 {[%clk 0:03:02]}  Nc6 {[%clk 0:03:00]} 6. Nf3 {[%clk 0:03:02]}  d6 {[%clk 0:03:00]} 7. Bc4 {[%clk 0:02:31]}  Nb6 {[%clk 0:03:00]} 8. Bb5 {[%clk 0:02:31]}  dxe5 {[%clk 0:03:00]} 9. Nxe5 {[%clk 0:02:30]}  Bd7 {[%clk 0:03:00]} 10. Bxc6 {[%clk 0:02:30]}  Bxc6 {[%clk 0:03:00]} 11. Nxc6 {[%clk 0:02:29]}  bxc6 {[%clk 0:03:01]} 12. O-O {[%clk 0:02:29]}  g6 {[%clk 0:03:02]} 13. Nc3 {[%clk 0:02:29]}  Bg7 {[%clk 0:03:02]} 14. Be3 {[%clk 0:02:30]}  O-O {[%clk 0:03:02]} 15. Rc1 {[%clk 0:02:30]}  Qd7 {[%clk 0:02:50]} 16. Na4 {[%clk 0:02:27]}  Rfd8 {[%clk 0:02:47]} 17. Nc5 {[%clk 0:02:26]}  Qd5 {[%clk 0:02:47]} 18. Qb3 {[%clk 0:02:24]}  Bxd4 {[%clk 0:02:33]} 19. Rfd1 {[%clk 0:02:23]}  Qxb3 {[%clk 0:02:27]} 20. Nxb3 {[%clk 0:02:20]}  Bxb2 {[%clk 0:02:20]} 21. Rb1 {[%clk 0:02:17]}  Bf6 {[%clk 0:02:12]} 22. Rdc1 {[%clk 0:02:17]}  Nd5 {[%clk 0:01:52]} 23. Rxc6 {[%clk 0:02:12]}  Nxe3 {[%clk 0:01:52]} 24. fxe3 {[%clk 0:02:13]}  Rd3 {[%clk 0:01:52]} 25. Kf2 {[%clk 0:02:12]}  a5 {[%clk 0:01:49]} 26. Ke2 {[%clk 0:02:09]}  Rad8 {[%clk 0:01:47]} 27. Nxa5 {[%clk 0:02:05]}  Rd2+ {[%clk 0:01:47]} 28. Kf3 {[%clk 0:02:05]}  Rxa2 {[%clk 0:01:47]} 29. Nc4 {[%clk 0:02:05]}  h5 {[%clk 0:01:40]} 30. Rb7 {[%clk 0:02:03]}  Rd1 {[%clk 0:01:36]} 31. Nb6 {[%clk 0:01:58]}  Rf1+ {[%clk 0:01:33]} 32. Ke4 {[%clk 0:01:53]}  Rxg2 {[%clk 0:01:32]} 33. Nd5 {[%clk 0:01:53]}  Rg4+ {[%clk 0:01:26]} 34. Kd3 {[%clk 0:01:50]}  Rd1+ {[%clk 0:01:26]} 0-1


[Site "https://www.chess.com"]

[Event "Titled Tuesday Blitz July 6 2021"]
[White "Ljukin, Sergei"]
[Black "Priasmoro, Novendra"]
[WhiteFideId "14102200"]
[BlackFideId "7105029"]
[WhiteElo "2309"]
[BlackElo "2309"]
[Result "0-1"]
[Round "04"]
[TimeControl "180+1"]
[Date "2021.07.06"]
[WhiteClock "0:00:21"]
[BlackClock "0:01:56"]

1. e4 {[%clk 0:03:00]}  c5 {[%clk 0:03:00]} 2. Nf3 {[%clk 0:03:01]}  Nc6 {[%clk 0:03:01]} 3. d4 {[%clk 0:03:01]}  cxd4 {[%clk 0:03:02]} 4. Nxd4 {[%clk 0:03:01]}  g6 {[%clk 0:03:02]} 5. c4 {[%clk 0:03:00]}  Nf6 {[%clk 0:03:02]} 6. Nc3 {[%clk 0:02:59]}  d6 {[%clk 0:03:03]} 7. Be2 {[%clk 0:02:58]}  Nxd4 {[%clk 0:03:03]} 8. Qxd4 {[%clk 0:02:57]}  Bg7 {[%clk 0:03:03]} 9. Be3 {[%clk 0:02:57]}  O-O {[%clk 0:03:03]} 10. Qd2 {[%clk 0:02:57]}  a5 {[%clk 0:03:02]} 11. f3 {[%clk 0:02:45]}  a4 {[%clk 0:03:01]} 12. Rc1 {[%clk 0:02:43]}  Qa5 {[%clk 0:02:58]} 13. Nd5 {[%clk 0:02:42]}  Qxd2+ {[%clk 0:02:49]} 14. Kxd2 {[%clk 0:02:42]}  Nxd5 {[%clk 0:02:50]} 15. cxd5 {[%clk 0:02:42]}  Bxb2 {[%clk 0:02:50]} 16. Rc7 {[%clk 0:02:41]}  e6 {[%clk 0:02:39]} 17. Bh6 {[%clk 0:02:17]}  Bg7 {[%clk 0:02:34]} 18. Bg5 {[%clk 0:02:09]}  exd5 {[%clk 0:02:32]} 19. exd5 {[%clk 0:02:00]}  Ra5 {[%clk 0:02:31]} 20. Bc4 {[%clk 0:01:52]}  b5 {[%clk 0:02:31]} 21. Bd3 {[%clk 0:01:47]}  b4 {[%clk 0:02:31]} 22. Bc4 {[%clk 0:01:17]}  Bf5 {[%clk 0:02:14]} 23. Be7 {[%clk 0:01:12]}  Rc8 {[%clk 0:02:07]} 24. Rxc8+ {[%clk 0:01:09]}  Bxc8 {[%clk 0:02:08]} 25. Bxd6 {[%clk 0:01:08]}  Bc3+ {[%clk 0:02:04]} 26. Kc2 {[%clk 0:01:04]}  Bf5+ {[%clk 0:02:02]} 27. Kc1 {[%clk 0:01:01]}  h5 {[%clk 0:01:57]} 28. Be7 {[%clk 0:00:21]}  b3 {[%clk 0:01:56]} 0-1


[Site "https://www.chess.com"]

[Event "Titled Tuesday Blitz July 6 2021"]
[White "Lopez Gracia, Fernando"]
[Black "Deepan Chakkravarthy J."]
[WhiteFideId "2207184"]
[BlackFideId "5011132"]
[WhiteElo "2390"]
[BlackElo "2490"]
[Result "0-1"]
[Round "04"]
[TimeControl "180+1"]
[Date "2021.07.06"]
[WhiteClock "0:00:04"]
[BlackClock "0:00:33"]

1. e4 {[%clk 0:03:00]}  c6 {[%clk 0:02:59]} 2. d4 {[%clk 0:02:58]}  d5 {[%clk 0:02:59]} 3. exd5 {[%clk 0:02:58]}  cxd5 {[%clk 0:02:59]} 4. c4 {[%clk 0:02:58]}  Nf6 {[%clk 0:02:59]} 5. Nc3 {[%clk 0:02:59]}  e6 {[%clk 0:02:59]} 6. Nf3 {[%clk 0:02:58]}  Bb4 {[%clk 0:02:58]} 7. cxd5 {[%clk 0:02:58]}  Nxd5 {[%clk 0:02:57]} 8. Qc2 {[%clk 0:02:59]}  Nc6 {[%clk 0:02:54]} 9. Bd3 {[%clk 0:02:57]}  Nf6 {[%clk 0:02:54]} 10. O-O {[%clk 0:02:53]}  O-O {[%clk 0:02:46]} 11. a3 {[%clk 0:02:48]}  Be7 {[%clk 0:02:42]} 12. Bg5 {[%clk 0:02:46]}  g6 {[%clk 0:02:41]} 13. Rad1 {[%clk 0:02:43]}  Nd5 {[%clk 0:02:39]} 14. Bh6 {[%clk 0:02:42]}  Re8 {[%clk 0:02:39]} 15. Rfe1 {[%clk 0:02:41]}  Bf6 {[%clk 0:02:38]} 16. Ne4 {[%clk 0:02:31]}  Bg7 {[%clk 0:02:35]} 17. Bg5 {[%clk 0:02:27]}  f6 {[%clk 0:02:23]} 18. Bc1 {[%clk 0:02:24]}  Qc7 {[%clk 0:02:17]} 19. h4 {[%clk 0:02:15]}  b6 {[%clk 0:02:10]} 20. h5 {[%clk 0:02:13]}  Bb7 {[%clk 0:02:10]} 21. hxg6 {[%clk 0:02:12]}  hxg6 {[%clk 0:02:11]} 22. Ng3 {[%clk 0:02:11]}  f5 {[%clk 0:02:10]} 23. Ng5 {[%clk 0:02:02]}  Qd6 {[%clk 0:02:00]} 24. Bb5 {[%clk 0:01:43]}  Nxd4 {[%clk 0:01:52]} 25. Rxd4 {[%clk 0:01:39]}  Bxd4 {[%clk 0:01:53]} 26. Bxe8 {[%clk 0:01:38]}  Rxe8 {[%clk 0:01:54]} 27. Qc4 {[%clk 0:01:27]}  e5 {[%clk 0:01:37]} 28. Ne2 {[%clk 0:01:06]}  Qc5 {[%clk 0:01:32]} 29. Qxc5 {[%clk 0:00:42]}  Bxc5 {[%clk 0:01:31]} 30. b4 {[%clk 0:00:40]}  Bd6 {[%clk 0:01:30]} 31. Bb2 {[%clk 0:00:39]}  Bb8 {[%clk 0:01:28]} 32. Rd1 {[%clk 0:00:32]}  a6 {[%clk 0:01:23]} 33. Nc3 {[%clk 0:00:31]}  Nxc3 {[%clk 0:01:21]} 34. Bxc3 {[%clk 0:00:32]}  Bc6 {[%clk 0:01:22]} 35. Kf1 {[%clk 0:00:27]}  Bc7 {[%clk 0:01:05]} 36. Nf3 {[%clk 0:00:26]}  Bxf3 {[%clk 0:01:01]} 37. gxf3 {[%clk 0:00:27]}  Kf7 {[%clk 0:01:01]} 38. Ke2 {[%clk 0:00:19]}  Ke6 {[%clk 0:01:01]} 39. Rh1 {[%clk 0:00:19]}  Bd6 {[%clk 0:00:54]} 40. Rh6 {[%clk 0:00:19]}  Rg8 {[%clk 0:00:52]} 41. Rh7 {[%clk 0:00:18]}  Rc8 {[%clk 0:00:50]} 42. Kd2 {[%clk 0:00:17]}  Be7 {[%clk 0:00:49]} 43. Rh6 {[%clk 0:00:15]}  Rg8 {[%clk 0:00:45]} 44. Rh7 {[%clk 0:00:12]}  Rd8+ {[%clk 0:00:44]} 45. Ke2 {[%clk 0:00:11]}  Rd7 {[%clk 0:00:44]} 46. Bd2 {[%clk 0:00:10]}  Bf6 {[%clk 0:00:41]} 47. Rh1 {[%clk 0:00:08]}  b5 {[%clk 0:00:41]} 48. Rc1 {[%clk 0:00:08]}  Kd6 {[%clk 0:00:40]} 49. Be3 {[%clk 0:00:08]}  Rc7 {[%clk 0:00:40]} 50. Rd1+ {[%clk 0:00:08]}  Ke6 {[%clk 0:00:39]} 51. Bc5 {[%clk 0:00:09]}  Rd7 {[%clk 0:00:39]} 52. Rxd7 {[%clk 0:00:08]}  Kxd7 {[%clk 0:00:39]} 53. Kd3 {[%clk 0:00:09]}  Ke6 {[%clk 0:00:39]} 54. Bb6 {[%clk 0:00:09]}  Kd5 {[%clk 0:00:39]} 55. Bc7 {[%clk 0:00:07]}  e4+ {[%clk 0:00:38]} 56. fxe4+ {[%clk 0:00:08]}  fxe4+ {[%clk 0:00:39]} 57. Kc2 {[%clk 0:00:09]}  Bd4 {[%clk 0:00:38]} 58. Bg3 {[%clk 0:00:10]}  e3 {[%clk 0:00:38]} 59. fxe3 {[%clk 0:00:10]}  Bxe3 {[%clk 0:00:38]} 60. Kd3 {[%clk 0:00:11]}  Bd4 {[%clk 0:00:38]} 61. Bf4 {[%clk 0:00:09]}  Bf6 {[%clk 0:00:35]} 62. Bc1 {[%clk 0:00:09]}  g5 {[%clk 0:00:35]} 63. Ke3 {[%clk 0:00:09]}  Ke5 {[%clk 0:00:34]} 64. Kf3 {[%clk 0:00:09]}  Kf5 {[%clk 0:00:34]} 65. Kg3 {[%clk 0:00:06]}  Be5+ {[%clk 0:00:33]} 66. Kf3 {[%clk 0:00:06]}  g4+ {[%clk 0:00:34]} 67. Kg2 {[%clk 0:00:06]}  Ke4 {[%clk 0:00:33]} 68. Bd2 {[%clk 0:00:04]}  Kd3 {[%clk 0:00:33]} 69. Be1 {[%clk 0:00:04]}  Kc2 {[%clk 0:00:33]} 0-1


[Site "https://www.chess.com"]

[Event "Titled Tuesday Blitz July 6 2021"]
[White "Mickiewicz, Piotr"]
[Black "Kotsur, Pavel"]
[WhiteFideId "1114891"]
[BlackFideId "13700278"]
[WhiteElo "2263"]
[BlackElo "2521"]
[Result "0-1"]
[Round "04"]
[TimeControl "180+1"]
[Date "2021.07.06"]
[WhiteClock "0:00:01"]
[BlackClock "0:00:30"]

1. e4 {[%clk 0:03:00]}  c5 {[%clk 0:02:59]} 2. Nf3 {[%clk 0:03:00]}  d6 {[%clk 0:03:00]} 3. d4 {[%clk 0:03:00]}  cxd4 {[%clk 0:03:01]} 4. Qxd4 {[%clk 0:03:00]}  Nf6 {[%clk 0:03:00]} 5. Nc3 {[%clk 0:02:56]}  Nc6 {[%clk 0:02:58]} 6. Bb5 {[%clk 0:02:55]}  Nd7 {[%clk 0:02:58]} 7. Qe3 {[%clk 0:02:41]}  g6 {[%clk 0:02:56]} 8. O-O {[%clk 0:02:38]}  Bg7 {[%clk 0:02:56]} 9. Bd2 {[%clk 0:02:31]}  O-O {[%clk 0:02:55]} 10. Rfe1 {[%clk 0:02:28]}  a6 {[%clk 0:02:53]} 11. Bf1 {[%clk 0:02:26]}  b5 {[%clk 0:02:53]} 12. a3 {[%clk 0:02:22]}  Bb7 {[%clk 0:02:53]} 13. Rad1 {[%clk 0:02:21]}  Rc8 {[%clk 0:02:50]} 14. Bc1 {[%clk 0:02:14]}  Na5 {[%clk 0:02:48]} 15. Nd5 {[%clk 0:01:46]}  Rxc2 {[%clk 0:02:37]} 16. Bd2 {[%clk 0:01:37]}  Nc4 {[%clk 0:01:59]} 17. Bxc4 {[%clk 0:01:35]}  Rxc4 {[%clk 0:01:59]} 18. Bc3 {[%clk 0:01:32]}  Bxc3 {[%clk 0:01:59]} 19. Nxc3 {[%clk 0:01:18]}  f6 {[%clk 0:01:52]} 20. Nd4 {[%clk 0:01:09]}  Rf7 {[%clk 0:01:40]} 21. Ne6 {[%clk 0:01:02]}  Qc8 {[%clk 0:01:39]} 22. Nd5 {[%clk 0:01:00]}  Nc5 {[%clk 0:01:32]} 23. Nxc5 {[%clk 0:00:25]}  Qxc5 {[%clk 0:01:32]} 24. b4 {[%clk 0:00:22]}  Qxe3 {[%clk 0:01:30]} 25. Rxe3 {[%clk 0:00:21]}  Kf8 {[%clk 0:01:24]} 26. f4 {[%clk 0:00:15]}  e6 {[%clk 0:01:16]} 27. Nc3 {[%clk 0:00:14]}  Rd7 {[%clk 0:01:16]} 28. Rdd3 {[%clk 0:00:13]}  Ke7 {[%clk 0:01:13]} 29. Kf2 {[%clk 0:00:13]}  f5 {[%clk 0:01:05]} 30. exf5 {[%clk 0:00:12]}  Rxf4+ {[%clk 0:01:04]} 31. Kg3 {[%clk 0:00:10]}  Rxf5 {[%clk 0:01:03]} 32. h4 {[%clk 0:00:08]}  Rc7 {[%clk 0:00:59]} 33. Ne2 {[%clk 0:00:08]}  Rd5 {[%clk 0:00:51]} 34. Nd4 {[%clk 0:00:08]}  e5 {[%clk 0:00:48]} 35. Nf3 {[%clk 0:00:07]}  Rxd3 {[%clk 0:00:48]} 36. Rxd3 {[%clk 0:00:08]}  Bxf3 {[%clk 0:00:48]} 37. gxf3 {[%clk 0:00:07]}  Rc4 {[%clk 0:00:47]} 38. Rd1 {[%clk 0:00:04]}  Ke6 {[%clk 0:00:47]} 39. h5 {[%clk 0:00:04]}  gxh5 {[%clk 0:00:45]} 40. Rh1 {[%clk 0:00:05]}  h4+ {[%clk 0:00:46]} 41. Kf2 {[%clk 0:00:05]}  Kf5 {[%clk 0:00:41]} 42. Rg1 {[%clk 0:00:06]}  Rc2+ {[%clk 0:00:38]} 43. Ke3 {[%clk 0:00:06]}  Rc3+ {[%clk 0:00:36]} 44. Ke2 {[%clk 0:00:04]}  Rxa3 {[%clk 0:00:36]} 45. Rg4 {[%clk 0:00:04]}  h3 {[%clk 0:00:30]} 46. Rh4 {[%clk 0:00:04]}  h2 {[%clk 0:00:31]} 47. Rh5+ {[%clk 0:00:01]}  Kg6 {[%clk 0:00:30]} 48. Rh4 {[%clk 0:00:01]}  Ra1 {[%clk 0:00:30]} 0-1


[Site "https://www.chess.com"]

[Event "Titled Tuesday Blitz July 6 2021"]
[White "Mons, Leon"]
[Black "Nygren, Kim"]
[WhiteFideId "4614950"]
[BlackFideId "1706136"]
[WhiteElo "2492"]
[BlackElo "2257"]
[Result "1-0"]
[Round "04"]
[TimeControl "180+1"]
[Date "2021.07.06"]
[WhiteClock "0:01:03"]
[BlackClock "0:01:30"]

1. Nf3 {[%clk 0:03:00]}  Nf6 {[%clk 0:02:55]} 2. c4 {[%clk 0:02:59]}  g6 {[%clk 0:02:55]} 3. Nc3 {[%clk 0:02:59]}  Bg7 {[%clk 0:02:55]} 4. e4 {[%clk 0:03:00]}  d6 {[%clk 0:02:56]} 5. d4 {[%clk 0:03:00]}  O-O {[%clk 0:02:56]} 6. Be2 {[%clk 0:03:01]}  e5 {[%clk 0:02:56]} 7. d5 {[%clk 0:03:01]}  a5 {[%clk 0:02:55]} 8. Bg5 {[%clk 0:03:01]}  Na6 {[%clk 0:02:55]} 9. Nd2 {[%clk 0:03:00]}  Bd7 {[%clk 0:02:55]} 10. O-O {[%clk 0:03:00]}  Qe8 {[%clk 0:02:55]} 11. b3 {[%clk 0:02:51]}  h6 {[%clk 0:02:55]} 12. Bh4 {[%clk 0:02:50]}  Nh7 {[%clk 0:02:55]} 13. f3 {[%clk 0:02:49]}  f5 {[%clk 0:02:54]} 14. a3 {[%clk 0:02:43]}  g5 {[%clk 0:02:53]} 15. Bf2 {[%clk 0:02:42]}  f4 {[%clk 0:02:52]} 16. b4 {[%clk 0:02:29]}  axb4 {[%clk 0:02:50]} 17. axb4 {[%clk 0:02:30]}  Nxb4 {[%clk 0:02:50]} 18. Qb3 {[%clk 0:02:30]}  c5 {[%clk 0:02:41]} 19. dxc6 {[%clk 0:02:29]}  Nxc6 {[%clk 0:02:41]} 20. c5+ {[%clk 0:02:26]}  Kh8 {[%clk 0:02:39]} 21. cxd6 {[%clk 0:02:14]}  Rxa1 {[%clk 0:02:37]} 22. Rxa1 {[%clk 0:02:13]}  Nd4 {[%clk 0:02:38]} 23. Qxb7 {[%clk 0:02:08]}  Nxe2+ {[%clk 0:02:23]} 24. Nxe2 {[%clk 0:02:09]}  g4 {[%clk 0:02:24]} 25. Ra7 {[%clk 0:01:59]}  Nf6 {[%clk 0:02:22]} 26. Bh4 {[%clk 0:01:48]}  gxf3 {[%clk 0:02:12]} 27. Nxf3 {[%clk 0:01:39]}  Qg6 {[%clk 0:01:54]} 28. Bxf6 {[%clk 0:01:33]}  Bxf6 {[%clk 0:01:54]} 29. Qxd7 {[%clk 0:01:32]}  Qxe4 {[%clk 0:01:54]} 30. Qb7 {[%clk 0:01:12]}  Qg6 {[%clk 0:01:33]} 31. Ra8 {[%clk 0:01:09]}  Rxa8 {[%clk 0:01:30]} 32. Qxa8+ {[%clk 0:01:10]}  Kh7 {[%clk 0:01:30]} 33. Nc3 {[%clk 0:01:03]} 1-0


[Site "https://www.chess.com"]

[Event "Titled Tuesday Blitz July 6 2021"]
[White "Mortazavi, Ali"]
[Black "Lee, Qing Aun"]
[WhiteFideId "401323"]
[BlackFideId "5804167"]
[WhiteElo "2339"]
[BlackElo "2023"]
[Result "1-0"]
[Round "04"]
[TimeControl "180+1"]
[Date "2021.07.06"]
[WhiteClock "0:00:49"]
[BlackClock "0:01:10"]

1. Nf3 {[%clk 0:03:00]}  d5 {[%clk 0:02:56]} 2. g3 {[%clk 0:03:01]}  Nc6 {[%clk 0:02:54]} 3. Bg2 {[%clk 0:03:02]}  e5 {[%clk 0:02:53]} 4. d3 {[%clk 0:03:02]}  f6 {[%clk 0:02:52]} 5. O-O {[%clk 0:03:03]}  Be6 {[%clk 0:02:52]} 6. a3 {[%clk 0:03:00]}  Qd7 {[%clk 0:02:51]} 7. b4 {[%clk 0:03:00]}  a6 {[%clk 0:02:51]} 8. Nbd2 {[%clk 0:02:59]}  Nge7 {[%clk 0:02:50]} 9. c4 {[%clk 0:02:58]}  g6 {[%clk 0:02:43]} 10. cxd5 {[%clk 0:02:43]}  Nxd5 {[%clk 0:02:42]} 11. Bb2 {[%clk 0:02:41]}  Bg7 {[%clk 0:02:41]} 12. Ne4 {[%clk 0:02:41]}  b6 {[%clk 0:02:27]} 13. d4 {[%clk 0:02:27]}  f5 {[%clk 0:02:16]} 14. Neg5 {[%clk 0:02:23]}  e4 {[%clk 0:02:14]} 15. Nxe6 {[%clk 0:02:17]}  Qxe6 {[%clk 0:02:12]} 16. Ng5 {[%clk 0:02:14]}  Qe7 {[%clk 0:02:11]} 17. Nh3 {[%clk 0:02:13]}  O-O {[%clk 0:02:04]} 18. Rc1 {[%clk 0:02:04]}  Qd6 {[%clk 0:01:57]} 19. e3 {[%clk 0:02:02]}  Nce7 {[%clk 0:01:50]} 20. Qb3 {[%clk 0:01:56]}  Kh8 {[%clk 0:01:45]} 21. f3 {[%clk 0:01:56]}  exf3 {[%clk 0:01:40]} 22. Bxf3 {[%clk 0:01:56]}  Rae8 {[%clk 0:01:39]} 23. Rce1 {[%clk 0:01:44]}  Nf6 {[%clk 0:01:36]} 24. Nf4 {[%clk 0:01:12]}  g5 {[%clk 0:01:36]} 25. Ne6 {[%clk 0:01:09]}  g4 {[%clk 0:01:33]} 26. Bg2 {[%clk 0:01:05]}  Rg8 {[%clk 0:01:26]} 27. Nxg7 {[%clk 0:01:01]}  Rxg7 {[%clk 0:01:26]} 28. d5 {[%clk 0:01:02]}  Rg6 {[%clk 0:01:16]} 29. e4 {[%clk 0:00:58]}  fxe4 {[%clk 0:01:10]} 30. Rxe4 {[%clk 0:00:49]} 1-0


[Site "https://www.chess.com"]

[Event "Titled Tuesday Blitz July 6 2021"]
[White "Naroditsky, Daniel"]
[Black "Moroni, Luca Jr"]
[WhiteFideId "2026961"]
[BlackFideId "865834"]
[WhiteElo "2608"]
[BlackElo "2491"]
[Result "0-1"]
[Round "04"]
[TimeControl "180+1"]
[Date "2021.07.06"]
[WhiteClock "0:00:14"]
[BlackClock "0:00:18"]

1. e4 {[%clk 0:02:59]}  e5 {[%clk 0:02:59]} 2. Nf3 {[%clk 0:02:59]}  Nc6 {[%clk 0:02:59]} 3. Nc3 {[%clk 0:02:59]}  Nf6 {[%clk 0:02:59]} 4. g3 {[%clk 0:03:00]}  g6 {[%clk 0:02:57]} 5. Bg2 {[%clk 0:03:00]}  Bg7 {[%clk 0:02:58]} 6. O-O {[%clk 0:03:01]}  O-O {[%clk 0:02:58]} 7. d3 {[%clk 0:03:02]}  d6 {[%clk 0:02:56]} 8. Be3 {[%clk 0:03:02]}  Be6 {[%clk 0:02:55]} 9. h3 {[%clk 0:03:02]}  h6 {[%clk 0:02:56]} 10. d4 {[%clk 0:03:02]}  exd4 {[%clk 0:02:51]} 11. Nxd4 {[%clk 0:03:02]}  Nxd4 {[%clk 0:02:51]} 12. Bxd4 {[%clk 0:03:02]}  Qd7 {[%clk 0:02:37]} 13. Kh2 {[%clk 0:03:01]}  h5 {[%clk 0:02:27]} 14. Qd2 {[%clk 0:02:40]}  Rad8 {[%clk 0:02:11]} 15. Rfe1 {[%clk 0:02:34]}  h4 {[%clk 0:01:58]} 16. g4 {[%clk 0:02:34]}  d5 {[%clk 0:01:34]} 17. exd5 {[%clk 0:01:58]}  Nxd5 {[%clk 0:01:27]} 18. Bxg7 {[%clk 0:01:29]}  Kxg7 {[%clk 0:01:28]} 19. Rad1 {[%clk 0:01:27]}  Nf6 {[%clk 0:01:02]} 20. Qf4 {[%clk 0:01:15]}  Qe7 {[%clk 0:00:57]} 21. Bxb7 {[%clk 0:01:00]}  Rxd1 {[%clk 0:00:56]} 22. Nxd1 {[%clk 0:00:58]}  Rd8 {[%clk 0:00:44]} 23. Bf3 {[%clk 0:00:56]}  Qc5 {[%clk 0:00:43]} 24. Ne3 {[%clk 0:00:41]}  Rd4 {[%clk 0:00:34]} 25. b4 {[%clk 0:00:27]}  Rxf4 {[%clk 0:00:34]} 26. bxc5 {[%clk 0:00:25]}  Rxf3 {[%clk 0:00:35]} 27. Kg2 {[%clk 0:00:21]}  Rf4 {[%clk 0:00:34]} 28. Rb1 {[%clk 0:00:22]}  Nd5 {[%clk 0:00:26]} 29. Nf1 {[%clk 0:00:22]}  Rb4 {[%clk 0:00:25]} 30. Rd1 {[%clk 0:00:20]}  Nf4+ {[%clk 0:00:24]} 31. Kh2 {[%clk 0:00:21]}  Rb2 {[%clk 0:00:24]} 32. Ne3 {[%clk 0:00:21]}  Rxa2 {[%clk 0:00:24]} 33. c6 {[%clk 0:00:21]}  Ra6 {[%clk 0:00:23]} 34. Rd4 {[%clk 0:00:22]}  g5 {[%clk 0:00:23]} 35. Re4 {[%clk 0:00:20]}  Rxc6 {[%clk 0:00:22]} 36. Re5 {[%clk 0:00:20]}  Kf6 {[%clk 0:00:22]} 37. Ra5 {[%clk 0:00:21]}  a6 {[%clk 0:00:22]} 38. c4 {[%clk 0:00:22]}  Bxc4 {[%clk 0:00:19]} 39. Rf5+ {[%clk 0:00:13]}  Kg6 {[%clk 0:00:18]} 40. Ra5 {[%clk 0:00:14]}  Be6 {[%clk 0:00:18]} 41. Ra2 {[%clk 0:00:14]}  Bxa2 {[%clk 0:00:18]} 0-1


[Site "https://www.chess.com"]

[Event "Titled Tuesday Blitz July 6 2021"]
[White "Nouri, Alekhine"]
[Black "Dan-Lowes"]
[WhiteFideId "5216184"]
[WhiteElo "1894"]
[BlackElo "2224"]
[Result "0-1"]
[Round "04"]
[TimeControl "180+1"]
[Date "2021.07.06"]
[WhiteClock "0:00:02"]
[BlackClock "0:00:14"]

1. e4 {[%clk 0:02:56]}  c5 {[%clk 0:02:59]} 2. Nc3 {[%clk 0:02:56]}  d6 {[%clk 0:02:59]} 3. d4 {[%clk 0:02:54]}  cxd4 {[%clk 0:03:00]} 4. Qxd4 {[%clk 0:02:54]}  Nc6 {[%clk 0:03:00]} 5. Bb5 {[%clk 0:02:52]}  Bd7 {[%clk 0:02:58]} 6. Bxc6 {[%clk 0:02:52]}  Bxc6 {[%clk 0:02:59]} 7. Nf3 {[%clk 0:02:53]}  Nf6 {[%clk 0:02:56]} 8. Bg5 {[%clk 0:02:53]}  e6 {[%clk 0:02:57]} 9. O-O-O {[%clk 0:02:51]}  Be7 {[%clk 0:02:57]} 10. h3 {[%clk 0:02:50]}  O-O {[%clk 0:02:56]} 11. g4 {[%clk 0:02:50]}  Rc8 {[%clk 0:02:55]} 12. Rhe1 {[%clk 0:02:50]}  b5 {[%clk 0:02:54]} 13. Kb1 {[%clk 0:02:48]}  a5 {[%clk 0:02:53]} 14. Nd2 {[%clk 0:01:57]}  b4 {[%clk 0:02:47]} 15. Ne2 {[%clk 0:01:55]}  a4 {[%clk 0:02:46]} 16. f4 {[%clk 0:01:52]}  a3 {[%clk 0:02:32]} 17. b3 {[%clk 0:01:51]}  d5 {[%clk 0:02:30]} 18. e5 {[%clk 0:01:50]}  Ne4 {[%clk 0:02:29]} 19. Nxe4 {[%clk 0:01:47]}  dxe4 {[%clk 0:02:29]} 20. Qa7 {[%clk 0:01:43]}  Rc7 {[%clk 0:02:00]} 21. Qb6 {[%clk 0:01:25]}  Rd7 {[%clk 0:01:46]} 22. Qxd8 {[%clk 0:01:22]}  Rfxd8 {[%clk 0:01:47]} 23. Rxd7 {[%clk 0:01:20]}  Rxd7 {[%clk 0:01:48]} 24. Bxe7 {[%clk 0:01:20]}  Rxe7 {[%clk 0:01:48]} 25. c4 {[%clk 0:01:20]}  f6 {[%clk 0:01:37]} 26. Nd4 {[%clk 0:01:19]}  Bb7 {[%clk 0:01:35]} 27. c5 {[%clk 0:01:11]}  Bd5 {[%clk 0:01:35]} 28. Nc2 {[%clk 0:01:08]}  Rc7 {[%clk 0:01:30]} 29. exf6 {[%clk 0:01:06]}  Rxc5 {[%clk 0:01:15]} 30. Nxb4 {[%clk 0:01:06]}  Rc3 {[%clk 0:01:10]} 31. fxg7 {[%clk 0:00:50]}  Rxh3 {[%clk 0:01:09]} 32. f5 {[%clk 0:00:45]}  Kxg7 {[%clk 0:01:04]} 33. fxe6 {[%clk 0:00:44]}  Bxe6 {[%clk 0:00:58]} 34. Rxe4 {[%clk 0:00:44]}  Kf6 {[%clk 0:00:57]} 35. Na6 {[%clk 0:00:19]}  Rh2 {[%clk 0:00:49]} 36. Ra4 {[%clk 0:00:14]}  Rg2 {[%clk 0:00:37]} 37. Nc5 {[%clk 0:00:10]}  Bxg4 {[%clk 0:00:31]} 38. Rxa3 {[%clk 0:00:10]}  h5 {[%clk 0:00:28]} 39. b4 {[%clk 0:00:07]}  h4 {[%clk 0:00:27]} 40. Ne4+ {[%clk 0:00:07]}  Ke5 {[%clk 0:00:25]} 41. Nc5 {[%clk 0:00:02]}  h3 {[%clk 0:00:22]} 42. Nd3+ {[%clk 0:00:02]}  Kd4 {[%clk 0:00:20]} 43. Nf4 {[%clk 0:00:02]}  h2 {[%clk 0:00:14]} 0-1


[Site "https://www.chess.com"]